Cogmind - Beta 13 @@@ ROGUE MODE // 2024.04.21 @ 20:36:38 Player: Haddoc Result: Destroyed by G-34 Mercenary with Small Laser Performance ------------- Evolutions (0) 0 Regions Visited (2) 400 Robots Destroyed (32) 160 Value Destroyed (701) 701 Prototype IDs (2) 40 Alien Tech Used (0) 0 Bonus (0) 0 TOTAL SCORE: 1301 Bonus ------- None Cogmind --------- Core Integrity 0/250 Matter 243/300 Energy 250/250 System Corruption 2% Temperature Cool (44) Movement Core (500) Ox9 Location -10/Mines Parts ------- > --- POWER (1) -------- Ion Engine > --- PROPULSION (2) --- (None) > --- UTILITY (2) ------ Large Storage Unit Hacking Suite > --- WEAPON (2) ------- Light Assault Rifle Light Cannon > --- INVENTORY (15) --- Ion Engine Aluminum Leg Large Storage Unit Medium Matter Pod (100) Signal Interpreter Improved Terrain Scanner Assault Rifle Light Assault Rifle Mining Laser Mining Claw Peak State ------------ > --- POWER ------------ Light Ion Engine > --- PROPULSION ------- Light Treads Light Treads > --- UTILITY ---------- Large Storage Unit Hacking Suite > --- WEAPON ----------- Assault Rifle Light Assault Rifle > --- INVENTORY -------- Ion Engine Ion Engine Aluminum Leg Aluminum Leg Large Storage Unit Medium Matter Pod Improved Terrain Scanner Light Assault Rifle [Rating: 10] Favorites ----------- Power Ion Engine Engine Ion Engine Propulsion Aluminum Leg Treads Light Treads Leg Aluminum Leg Utility Hacking Suite Device Improved Terrain Scanner Storage Large Storage Unit Processor Signal Interpreter Hackware Hacking Suite Weapon Light Assault Rifle Ballistic Gun Light Assault Rifle Ballistic Cannon Light Cannon Slashing Weapon Mining Claw Build | -11 -10 -10 ------- Run | Yrd Mat Min Slots Evolved . | . . . Power . | . . . Propulsion . | . . . Utility . | . . . Weapon . | . . . Parts Attached 18 | 7 8 3 Power 3 | 1 2 . Engine 3 | 1 2 . Core . | . . . Reactor . | . . . Propulsion 4 | 2 2 . Treads 2 | 2 . . Leg 2 | . 2 . Wheel . | . . . Hover . | . . . Flight . | . . . Utility 5 | 2 3 . Device 1 | 1 . . Storage 2 | 1 1 . Processor 1 | . 1 . Hackware 1 | . 1 . Protection . | . . . Artifact . | . . . Weapon 6 | 2 1 3 Energy Gun . | . . . Energy Cannon . | . . . Ballistic Gun 3 | 2 1 . Ballistic Cannon 2 | . . 2 Launcher . | . . . Special Weapon . | . . . Impact Weapon . | . . . Slashing Weapon 1 | . . 1 Piercing Weapon . | . . . Special Melee Weapon . | . . . Unidentified Prototypes . | . . . Parts Lost 6 | . 4 2 Power 1 | . 1 . Propulsion 4 | . 2 2 Utility . | . . . Weapon 1 | . 1 . Highest Loss Streak 3 | . 3 2 To Critical Strikes . | . . . Average Slot Usage (%) 98 | . 98 99 Engine 13 | . 13 14 Treads 10 | . 15 . Leg 16 | . 11 27 Storage 14 | . 14 14 Processor 3 | . 4 . Hackware 10 | . 9 14 Ballistic Gun 23 | . 27 15 Ballistic Cannon 2 | . . 8 Slashing Weapon 1 | . . 3 Naked Turns . | . . . Heaviest Build 29 | 12 28 29 Greatest Support 40 | 40 40 20 Greatest Overweight (x) 3 | 3 1 1 Average Overweight (x) . | . . 1 Largest Inventory Capacity 15 | 8 15 15 Average Capacity 12 | 7 12 15 Most Carried 10 | 5 10 10 Average Carried 7 | 2 6 10 Final Capacity 15 | 8 15 15 Final Carried 10 | 3 10 10 Class Distribution -------------------- 100% | Mutant Dominant Class ---------------- Mutant | -10/Materials Mutant | -10/Mines Resources | -11 -10 -10 ----------- Run | Yrd Mat Min Matter Collected 870 | 413 336 121 Remotely . | . . . Salvage Created 1141 | 151 804 186 Parts 64 | 12 44 8 Haulers Intercepted . | . . . Recyclers Shooed 1 | 1 . . Parts Field Recycled . | . . . Retrieved Matter . | . . . Parts Self-Destructed . | . . . Prevented . | . . . Kills | -11 -10 -10 ------- Run | Yrd Mat Min Combat Hostiles Destroyed 20 | . 15 5 Melee 3 | . . 3 Guns 15 | . 15 . Cannons 2 | . . 2 Classes Destroyed 8 | 3 4 1 Worker 3 | 2 . 1 Tunneler 3 | 2 . 1 Recycler 4 | 1 3 . Operator 2 | . 2 . Watcher 2 | . 2 . Swarmer 3 | . 3 . Grunt 15 | . 12 3 Assembled 2 | . . 2 Best Kill Streak 5 | 3 5 2 Combat Bots Only 5 | . 5 2 Max Kills in Single Turn 1 | 1 1 1 Gunslinging . | . . . Exploded . | . . . Melee 1 | . . 1 Uniques/NPCs Destroyed . | . . . Combat | -11 -10 -10 -------- Run | Yrd Mat Min Hostile Shots Fired 136 | . 94 42 Missed 42 | . 30 12 Damage Taken 1099 | . 754 345 Core 257 | . 157 100 Absorbed by Shields . | . . . Core Remaining (%) 100 | 100 . . Volleys Fired 112 | 12 72 28 Largest 2 | 2 2 2 Hottest 55 | 40 40 55 Shots Fired 213 | 24 135 54 Gun 187 | 24 135 28 Cannon 26 | . . 26 Launcher . | . . . Special . | . . . Kinetic 213 | 24 135 54 Thermal . | . . . Explosive . | . . . Electromagnetic . | . . . Robot Hit Streak 16 | 9 16 7 Robot Miss Streak 5 | 1 5 5 Penetration Max . | . . . Secondary Targets 4 | . 4 . Max Gunslinging Chain 1 | . 1 . Shots Hit Robots 138 | 18 90 30 Core Hits 60 | 7 42 11 Critical Kills 2 | . 2 . Critical Parts Destroyed . | . . . Critical Strikes 3 | . 2 1 Destroy 2 | . 2 . Blast 1 | . . 1 Melee Attacks 26 | . . 26 Impact . | . . . Slashing 26 | . . 26 Piercing . | . . . Sneak Attacks . | . . . Combat Hostiles . | . . . Follow-up Attacks . | . . . Damage Inflicted 1641 | 188 967 486 Guns 1240 | 188 967 85 Cannons 243 | . . 243 Explosions . | . . . Melee 158 | . . 158 Ramming . | . . . Kinetic 1483 | 188 967 328 Thermal . | . . . Explosive . | . . . Electromagnetic . | . . . Impact . | . . . Slashing 158 | . . 158 Piercing . | . . . Highest Corruption 2 | . 2 2 Average Corruption 2 | . 2 2 Corruption Purged . | . . . Corruption Blocked . | . . . Effects 13 | . 5 8 Message Errors 2 | . 2 . Matter Fused 2 | . . 2 Heat Flow Errors 1 | . . 1 Energy Discharges 3 | . 2 1 Data Loss (minor) 3 | . 1 2 Data Loss (major) 2 | . . 2 Overload Shots . | . . . Overflow Damage 1 | . . 1 Projectiles . | . . . Explosions . | . . . Melee 1 | . . 1 Knockbacks 3 | . . 3 Impact . | . . . Kinetic 3 | . . 3 Secondary . | . . . Self-Inflicted Damage . | . . . Shots . | . . . Rammed . | . . . Targets Rammed . | . . . Kicked . | . . . Crushed . | . . . Highest Temperature 152 | . 24 152 Average Temperature 17 | . 8 23 Received Heat Transfer 641 | . 396 245 Siege Activations . | . . . Robots Corrupted . | . . . Combat Hostiles . | . . . Parts Fried . | . . . Impact Corruptions . | . . . Robots Melted . | . . . Combat Hostiles . | . . . Parts Melted . | . . . Heat Transferred . | . . . Parts Sabotaged . | . . . Parts Stolen . | . . . Parts Stripped . | . . . Power Chain Reactions . | . . . Alert | -11 -10 -10 ------- Run | Yrd Mat Min Peak Influence 224 | 25 224 55 Initial 16 | . 16 . Average 55 | 9 75 23 Maximum Alert Level 1 | . 1 . Low Security (%) 95 | 100 93 100 Level 1 4 | . 6 . Level 2 . | . . . Level 3 . | . . . Level 4 . | . . . Level 5 . | . . . High Security . | . . . Max Security . | . . . Squads Dispatched 5 | . 5 . Investigation 3 | . 3 . Extermination . | . . . Reinforcement 2 | . 2 . Assault . | . . . Garrison . | . . . Intercept . | . . . Searches Triggered . | . . . Construction Impeded . | . . . Haulers Reinforced . | . . . Active Scanning Responses . | . . . Cargo Convoy Interrupts . | . . . Stealth | -11 -10 -10 --------- Run | Yrd Mat Min Distress Signals 3 | . 3 . Communications Jammed . | . . . Distress Signals . | . . . Times Spotted 29 | . 22 7 Peak Tracking Total 3 | . 3 2 Tactical Retreats . | . . . Traps | -11 -10 -10 ------- Run | Yrd Mat Min Traps Triggered 2 | . 2 . Indirectly . | . . . Trap Hack Attempts . | . . . Triggered . | . . . Disarmed . | . . . Reprogrammed . | . . . Reused . | . . . Traps Extracted . | . . . Installed . | . . . Triggered . | . . . Machines | -11 -10 -10 ---------- Run | Yrd Mat Min Machines Disabled 1 | . 1 . Max in Single Turn 1 | . 1 . Machines Repaired . | . . . Machines Dismantled . | . . . Machines Sabotaged . | . . . Overloaded Fab Kills . | . . . Hacking | -11 -10 -10 --------- Run | Yrd Mat Min Machines Accessed 7 | . 7 . Terminals 6 | . 6 . Fabricators . | . . . Repair Stations . | . . . Recycling Units 1 | . 1 . Scanalyzers . | . . . Garrison Access . | . . . Total Hacks 15 | . 15 . Successful 5 | . 5 . Failed 9 | . 9 . Catastrophic 1 | . 1 . Database Lockouts 1 | . 1 . Manual 15 | . 15 . Terminals 14 | . 14 . Fabricators . | . . . Repair Stations . | . . . Recycling Units 1 | . 1 . Scanalyzers . | . . . Garrison Access . | . . . Terminal Hacks 4 | . 4 . Part Schematic 1 | . 1 . Prototype ID Bank 1 | . 1 . Branch Access Points 1 | . 1 . Unreport Threat 1 | . 1 . Fabricator Hacks . | . . . Repair Station Hacks . | . . . Recycling Unit Hacks 1 | . 1 . Report Inventory 1 | . 1 . Scanalyzer . | . . . Garrison Access Hacks . | . . . Unauthorized Hacks . | . . . Terminals . | . . . Fabricators . | . . . Repair Stations . | . . . Recycling Units . | . . . Scanalyzers . | . . . Garrison Access . | . . . Data Cores Recovered . | . . . Used . | . . . Hacking Detections 6 | . 6 . Full Trace Events 3 | . 3 . Feedback Events . | . . . Feedback Blocked . | . . . Robot Schematics Acquired . | . . . Robots Built . | . . . Authchips . | . . . Time . | . . . Total Robot Build Rating . | . . . Part Schematics Acquired 1 | . 1 . Parts Built . | . . . Authchips . | . . . Time . | . . . Total Part Build Rating . | . . . Parts Repaired . | . . . Time . | . . . Parts Recycled . | . . . Recycled Matter . | . . . Retrieved Matter . | . . . Retrieved Components . | . . . Parts Scanalyzed . | . . . Part Schematics Acquired . | . . . Parts Damaged . | . . . Bothacking | -11 -10 -10 ------------ Run | Yrd Mat Min Used RIF Installer . | . . . Robots Hacked . | . . . Non-combat . | . . . Combat . | . . . Robot Hacks Applied . | . . . Relay Couplers Released . | . . . Fabnet Peak Effective % . | . . . Robots Rewired . | . . . Allies Hacked . | . . . Hacks Repelled . | . . . Allies | -11 -10 -10 -------- Run | Yrd Mat Min Total Allies . | . . . Largest Group . | . . . Highest-Rated Group . | . . . Highest-Rated Ally . | . . . Total Orders . | . . . Ally Attacks . | . . . Total Damage . | . . . Kills . | . . . Allies Corrupted . | . . . Allies Melted . | . . . Intel | -11 -10 -10 ------- Run | Yrd Mat Min Robot Analysis Total . | . . . Derelict Logs Recovered 1 | . . 1 Drone Launches . | . . . Drone Recoveries . | . . . Exploration | -11 -10 -10 ------------- Run | Yrd Mat Min Turns Passed 2339 | 153 1496 690 Spaces Moved 1085 | 70 738 277 Core 20 | 20 . . Treads 488 | 50 438 . Legs 577 | . 300 277 Wheels . | . . . Hover . | . . . Flight . | . . . Fastest Speed 50 | 50 160 190 Average Speed 175 | 145 172 190 Slowest Speed 200 | 200 190 190 Overloaded Moves . | . . . Propulsion Burnouts . | . . . Robots Hopped . | . . . Cave-ins Triggered . | . . . Exploration Rate (%) 46 | 5 97 38 Regions Visited 2 Branch Regions 1 Pre-discovered Areas 2 | . . 2 Known Exits Taken 1 | . 1 . Unknown Exits Taken 1 | 1 . . Scrap Searched . | . . . Spaces Dug 3 | . . 3 Terrain Destroyed 3 | . . 3 Melee 3 | . . 3 Projectile . | . . . AOE . | . . . Terrain Rammed . | . . . Walls Destroyed . | . . . Machines Disabled . | . . . Actions | -11 -10 -10 --------- Run | Yrd Mat Min Total 1280 | 100 841 339 Wait 11 | . 6 5 Move 1083 | 69 737 277 Hop . | . . . Pick Up 26 | 11 15 . Fast Attach . | . . . Attach 12 | 7 5 . Detach . | . . . Swap 6 | . 3 3 Drop 4 | 1 3 . Fire 112 | 12 72 28 Melee 26 | . . 26 Ram . | . . . Kick . | . . . Crush . | . . . Escape Stasis . | . . . Rewire . | . . . Trap . | . . . Miscellaneous . | . . . Route ------- -11/Scrapyard -10/Materials (discovered 4 exits: *Mat x3 / *Min) -10/Mines History --------- Turn | Location | Event 9 | -11/Scrapyard | Discovered new exit (range 16) 154 | -11/Scrapyard | Entered Materials 302 | -10/Materials | Build established: Mutant 359 | -10/Materials | Discovered new exit (range 11) 589 | -10/Materials | Identified exit to Materials 667 | -10/Materials | Discovered exit to Materials (range 10) 766 | -10/Materials | Identified exit to Mines 1047 | -10/Materials | Lost 3 parts (1p2n) 1105 | -10/Materials | Core integrity fell below 50% 1236 | -10/Materials | Central database locked down 1497 | -10/Materials | Discovered exit to Materials (range 10) 1650 | -10/Materials | Entered Mines 1702 | -10/Mines | Learned location of Zion (-6) 1877 | -10/Mines | Learned location of Storage (-9) 2096 | -10/Mines | Excavation squad dispatched 2096 | -10/Mines | A large section of the Mines collapsed 2327 | -10/Mines | Core integrity fell below 20% 2340 | -10/Mines | Destroyed by G-34 Mercenary with Small Laser Last Messages --------------- 02325_ U-05 Engineer lays Concrete. 02327_ T-07 Excavator is excavating. 02329_ U-05 Engineer lays Concrete. 02329_ G-34 Mercenary knocked back. 02330_ U-05 Engineer lays Concrete. 02331_ T-07 Excavator is excavating. 02331_ U-05 Engineer lays Concrete. 02332_ Aluminum Leg destroyed. 02333_ U-05 Engineer lays Concrete. 02334_ T-07 Excavator is excavating. 02334_ U-05 Engineer lays Concrete. 02334_ T-07 Excavator is excavating. 02336_ U-05 Engineer lays Concrete. 02336_ Aluminum Leg destroyed. 02337_ T-07 Excavator is excavating. 02338_ U-05 Engineer lays Concrete. 02338_ G-34 Mercenary knocked back. 02338_ as-92247 sneak attacks. 02338_ T-07 Excavator destroyed. 02339_ T-07 Excavator is excavating. Map ----- +----------------------------------------------------+ | | | | | | | | | | | | | | | ???????????????????????????????????????? | | ???????????????????????????????????????? | | ????????????????????????????######?????? | | ???????????????????????????## ##????? | | ?????????????????????####??# #????? | | ????????????????????## #??# #????? | | ????????????????????# #??# #?????? | | ????????????????????# #??# #?????? | | ????????????###?????# #??# #?????? | | ????????????#%###???# ##?# #?????? | | ????????????##%####?### #?## #?????? | | ?????????????#!=# ##?#"###??## #?????? | | ?????????????# #### # # #??## #?????? | | ############## # ##??## #?????? | | u ; ;#???# ##?????? | | ################ %g##?## ##??????? | | ????????????????# [## ; #???????? | | ????????????????# g %t ## #???????? | | ?????????????????# @#### #???????? | | ?????????????????## ; ;### ##???????? | | ??????????????????## ; ##?###????????? | | ???????????????????#;t ##?????????????? | | ??????????????????# !% # #????????????? | | ??????????????????## a# ?????????????? | | ???????????????????### ?????????????? | | ???????????????????????????????????????? | | ???????????????????????????????????????? | | ???????????????????????????????????????? | | ???????????????????????????????????????? | | ???????????????????????????????????????? | | ???????????????????????????????????????? | | ???????????????????????????????????????? | | ???????????????????????????????????????? | | ???????????????????????????????????????? | | ???????????????????????????????????????? | | ???????????????????????????????????????? | | ???????????????????????????????????????? | | ???????????????????????????????????????? | | ???????????????????????????????????????? | | ???????????????????????????????????????? | | ???????????????????????????????????????? | | ???????????????????????????????????????? | | ???????????????????????????????????????? | +----------------------------------------------------+ Best States ------------- Heat Dissipation 25 Energy Generation 10 Energy Capacity 250 Matter Stores 300 Matter Capacity 300 Sight Range 16 Terrain Scan Range 16 Terrain Scan Density 10 Evasion (%) 40 Recoil Reduction 2 Offensive Hacking 10 Item Schematics ----------------- Lrg. Storage Unit | -10/Materials | Hacked Robot Schematics ------------------ None Fabricated ------------ Nothing Alien Tech Used ----------------- None Achievements -------------- None Challenges ------------ None Game ------ Seed SpreadAngularRecalibrator Manual? 0 Play Time 00:19:25 Cumulative 21.3 hours Start 2024.04.21 @ 20:10:03 End 2024.04.21 @ 20:36:38 Sessions 1 Manual Loads 0 Difficulty Rogue Special Mode None Game No. 19 Rogue 4 Adventurer 11 Explorer 4 Win Type - Total 1 Types 1/0/0/0/0/0/0/0/0 Lore% 28 Gallery% 29 Achievement% 29 Wizard Run 0 Options --------- Layout 1 ASCII 0 Keyboard 0 Movement Numpad Keybinds 0 Fullscreen 1 Font 20/SmallcapsGlow Map View 54x42 Zoom Use 0% Tactical HUD 1 Map Filters NONE Filters NONE Steam 1 RUN: ded47c80-4716-4b56-a804-15cc68f2ae1d